[Event "Titled Tuesday Blitz December 20 Late 2022"]
[White "Olsen, Filip Boe"]
[Black "Koutlas, Nikolaos"]
[WhiteFideId "1440640"]
[BlackFideId "25827138"]
[WhiteElo "2333"]
[BlackElo "2167"]
[Result "0-1"]
[Round "11"]
[TimeControl "180+1"]
[Date "2022.12.20"]
[WhiteClock "0:00:22"]
[BlackClock "0:00:13"]

1. c4 {[%clk 0:03:00]}  Nf6 {[%clk 0:02:57]} 2. Nc3 {[%clk 0:03:00]}  g6 {[%clk 0:02:54]} 3. d4 {[%clk 0:02:59]}  d5 {[%clk 0:02:51]} 4. h4 {[%clk 0:02:57]}  dxc4 {[%clk 0:02:47]} 5. e4 {[%clk 0:02:55]}  c5 {[%clk 0:02:47]} 6. d5 {[%clk 0:02:49]}  b5 {[%clk 0:02:46]} 7. e5 {[%clk 0:02:40]}  b4 {[%clk 0:02:40]} 8. exf6 {[%clk 0:02:37]}  bxc3 {[%clk 0:02:39]} 9. bxc3 {[%clk 0:02:36]}  exf6 {[%clk 0:02:37]} 10. Bxc4 {[%clk 0:02:32]}  Bd6 {[%clk 0:02:34]} 11. h5 {[%clk 0:02:31]}  Qe7+ {[%clk 0:02:24]} 12. Kf1 {[%clk 0:02:26]}  O-O {[%clk 0:02:17]} 13. Bh6 {[%clk 0:01:49]}  Re8 {[%clk 0:02:16]} 14. hxg6 {[%clk 0:01:45]}  hxg6 {[%clk 0:02:13]} 15. Qd2 {[%clk 0:01:39]}  Nd7 {[%clk 0:02:10]} 16. Bg7 {[%clk 0:01:38]}  g5 {[%clk 0:02:03]} 17. Qd3 {[%clk 0:01:35]}  Qe4 {[%clk 0:01:55]} 18. Bh6 {[%clk 0:00:55]}  Qg6 {[%clk 0:00:50]} 19. Qxg6+ {[%clk 0:00:40]}  fxg6 {[%clk 0:00:51]} 20. Ne2 {[%clk 0:00:36]}  Ne5 {[%clk 0:00:49]} 21. Bb5 {[%clk 0:00:32]}  Re7 {[%clk 0:00:50]} 22. f4 {[%clk 0:00:29]}  Ng4 {[%clk 0:00:34]} 23. fxg5 {[%clk 0:00:28]}  Rh7 {[%clk 0:00:25]} 24. Rh4 {[%clk 0:00:18]}  Ne3+ {[%clk 0:00:18]} 25. Kf2 {[%clk 0:00:18]}  Nf5 {[%clk 0:00:17]} 26. Rhh1 {[%clk 0:00:17]}  Rb8 {[%clk 0:00:13]} 27. Bd3 {[%clk 0:00:15]}  Rb2 {[%clk 0:00:07]} 28. Rab1 {[%clk 0:00:12]}  Rxa2 {[%clk 0:00:05]} 29. Ra1 {[%clk 0:00:11]}  Rd2 {[%clk 0:00:04]} 30. Rhd1 {[%clk 0:00:10]}  Rxd1 {[%clk 0:00:03]} 31. Rxd1 {[%clk 0:00:11]}  fxg5 {[%clk 0:00:03]} 32. Bxg5 {[%clk 0:00:11]}  Rf7 {[%clk 0:00:03]} 33. Kg1 {[%clk 0:00:10]}  Ng3 {[%clk 0:00:03]} 34. Nxg3 {[%clk 0:00:09]}  Bxg3 {[%clk 0:00:03]} 35. d6 {[%clk 0:00:08]}  Rf5 {[%clk 0:00:02]} 36. Bc4+ {[%clk 0:00:07]}  Kg7 {[%clk 0:00:01]} 37. Be7 {[%clk 0:00:06]}  Rf4 {[%clk 0:00:01]} 38. Bb5 {[%clk 0:00:06]}  Bf2+ {[%clk 0:00:01]} 39. Kf1 {[%clk 0:00:05]}  Bg4 {[%clk 0:00:02]} 40. Rd3 {[%clk 0:00:03]}  Bd4+ {[%clk 0:00:03]} 41. Ke1 {[%clk 0:00:03]}  Be5 {[%clk 0:00:02]} 42. d7 {[%clk 0:00:03]}  Bxd7 {[%clk 0:00:02]} 43. Bxd7 {[%clk 0:00:03]}  Kh6 {[%clk 0:00:03]} 44. Bh3 {[%clk 0:00:03]}  Rh4 {[%clk 0:00:04]} 45. Bf8+ {[%clk 0:00:04]}  Kh7 {[%clk 0:00:03]} 46. Rd5 {[%clk 0:00:04]}  Rh5 {[%clk 0:00:03]} 47. Bd6 {[%clk 0:00:04]}  Bxc3+ {[%clk 0:00:03]} 48. Ke2 {[%clk 0:00:04]}  Rxd5 {[%clk 0:00:04]} 49. Bg3 {[%clk 0:00:04]}  Be5 {[%clk 0:00:03]} 50. Be6 {[%clk 0:00:05]}  Rd6 {[%clk 0:00:02]} 51. Bc4 {[%clk 0:00:05]}  Bxg3 {[%clk 0:00:02]} 52. Kf3 {[%clk 0:00:05]}  Be5 {[%clk 0:00:03]} 53. Ke4 {[%clk 0:00:05]}  Bd4 {[%clk 0:00:04]} 54. Kd3 {[%clk 0:00:05]}  Rb6 {[%clk 0:00:05]} 55. Ke4 {[%clk 0:00:06]}  Kh6 {[%clk 0:00:05]} 56. Kd5 {[%clk 0:00:07]}  g5 {[%clk 0:00:06]} 57. Bd3 {[%clk 0:00:08]}  Kh5 {[%clk 0:00:06]} 58. Be4 {[%clk 0:00:09]}  Kh4 {[%clk 0:00:07]} 59. Kc4 {[%clk 0:00:09]}  Kg3 {[%clk 0:00:08]} 60. Bd5 {[%clk 0:00:10]}  Kf4 {[%clk 0:00:08]} 61. Kd3 {[%clk 0:00:11]}  Rb4 {[%clk 0:00:08]} 62. Bf3 {[%clk 0:00:12]}  Rb2 {[%clk 0:00:09]} 63. Be4 {[%clk 0:00:13]}  Rf2 {[%clk 0:00:10]} 64. Bf3 {[%clk 0:00:13]}  Kg3 {[%clk 0:00:11]} 65. Ke4 {[%clk 0:00:13]}  Rxg2 {[%clk 0:00:12]} 66. Bxg2 {[%clk 0:00:13]}  Kxg2 {[%clk 0:00:12]} 67. Kf5 {[%clk 0:00:14]}  Kf2 {[%clk 0:00:13]} 68. Kxg5 {[%clk 0:00:15]}  c4 {[%clk 0:00:13]} 69. Kf5 {[%clk 0:00:16]}  c3 {[%clk 0:00:14]} 70. Ke6 {[%clk 0:00:17]}  c2 {[%clk 0:00:15]} 71. Kd5 {[%clk 0:00:18]}  c1=Q {[%clk 0:00:15]} 72. Kd6 {[%clk 0:00:18]}  Ke3 {[%clk 0:00:16]} 73. Kd5 {[%clk 0:00:19]}  Qc5+ {[%clk 0:00:15]} 74. Ke6 {[%clk 0:00:20]}  Ke4 {[%clk 0:00:15]} 75. Kd7 {[%clk 0:00:20]}  Qd5+ {[%clk 0:00:15]} 76. Ke8 {[%clk 0:00:21]}  Qb7 {[%clk 0:00:14]} 77. Kf8 {[%clk 0:00:21]}  Bc5+ {[%clk 0:00:14]} 78. Ke8 {[%clk 0:00:22]}  Qe7# {[%clk 0:00:13]} 0-1


[Site "https://www.chess.com"]

[Event "Titled Tuesday Blitz December 20 Late 2022"]
[White "Omelja, Artem"]
[Black "Rustemov, Alexander"]
[WhiteFideId "14119846"]
[BlackFideId "4119002"]
[WhiteElo "2550"]
[BlackElo "2859"]
[Result "0-1"]
[Round "11"]
[TimeControl "180+1"]
[Date "2022.12.21"]
[WhiteClock "0:00:17"]
[BlackClock "0:00:35"]

1. d4 {[%clk 0:03:00]}  d5 {[%clk 0:02:50]} 2. c4 {[%clk 0:02:58]}  c6 {[%clk 0:02:49]} 3. Nc3 {[%clk 0:02:58]}  dxc4 {[%clk 0:02:49]} 4. a4 {[%clk 0:02:51]}  e5 {[%clk 0:02:47]} 5. e3 {[%clk 0:02:48]}  exd4 {[%clk 0:02:47]} 6. exd4 {[%clk 0:02:48]}  Be6 {[%clk 0:02:47]} 7. Nf3 {[%clk 0:02:48]}  Nf6 {[%clk 0:02:44]} 8. Be2 {[%clk 0:02:48]}  Bb4 {[%clk 0:02:42]} 9. O-O {[%clk 0:02:48]}  O-O {[%clk 0:02:42]} 10. h3 {[%clk 0:02:46]}  Nbd7 {[%clk 0:02:40]} 11. Be3 {[%clk 0:02:46]}  Qa5 {[%clk 0:02:35]} 12. Qc2 {[%clk 0:02:45]}  Rfe8 {[%clk 0:02:24]} 13. Na2 {[%clk 0:02:34]}  Nb6 {[%clk 0:02:17]} 14. Nxb4 {[%clk 0:02:15]}  Qxb4 {[%clk 0:02:12]} 15. a5 {[%clk 0:02:15]}  Nbd5 {[%clk 0:02:08]} 16. Bd2 {[%clk 0:02:15]}  Qb3 {[%clk 0:01:54]} 17. Qxc4 {[%clk 0:02:13]}  Qxc4 {[%clk 0:01:46]} 18. Bxc4 {[%clk 0:02:13]}  Nf4 {[%clk 0:01:42]} 19. Bxf4 {[%clk 0:01:52]}  Bxc4 {[%clk 0:01:42]} 20. Rfe1 {[%clk 0:01:52]}  Nd5 {[%clk 0:01:37]} 21. Bd2 {[%clk 0:01:52]}  f6 {[%clk 0:01:36]} 22. Bc3 {[%clk 0:01:51]}  Kf7 {[%clk 0:01:34]} 23. Nd2 {[%clk 0:01:51]}  Bd3 {[%clk 0:01:31]} 24. Nb3 {[%clk 0:01:46]}  b6 {[%clk 0:01:30]} 25. f3 {[%clk 0:01:37]}  g5 {[%clk 0:01:24]} 26. Kf2 {[%clk 0:01:32]}  h5 {[%clk 0:01:24]} 27. Rxe8 {[%clk 0:01:18]}  Rxe8 {[%clk 0:01:23]} 28. Nc1 {[%clk 0:01:19]}  Bb5 {[%clk 0:01:20]} 29. axb6 {[%clk 0:01:19]}  axb6 {[%clk 0:01:21]} 30. Ra7+ {[%clk 0:01:19]}  Kg6 {[%clk 0:01:16]} 31. Bd2 {[%clk 0:01:09]}  h4 {[%clk 0:01:16]} 32. Ra3 {[%clk 0:00:59]}  Kf5 {[%clk 0:01:15]} 33. Be3 {[%clk 0:00:48]}  Rd8 {[%clk 0:01:07]} 34. Bd2 {[%clk 0:00:41]}  Ke6 {[%clk 0:01:06]} 35. Na2 {[%clk 0:00:39]}  Ne7 {[%clk 0:01:01]} 36. Be3 {[%clk 0:00:35]}  Nf5 {[%clk 0:01:01]} 37. Nc3 {[%clk 0:00:34]}  Nxd4 {[%clk 0:00:57]} 38. Bxd4 {[%clk 0:00:34]}  Rxd4 {[%clk 0:00:57]} 39. Nxb5 {[%clk 0:00:34]}  cxb5 {[%clk 0:00:58]} 40. Ke3 {[%clk 0:00:34]}  Rb4 {[%clk 0:00:56]} 41. b3 {[%clk 0:00:34]}  Kd5 {[%clk 0:00:49]} 42. Kd3 {[%clk 0:00:34]}  Kc5 {[%clk 0:00:49]} 43. Kc2 {[%clk 0:00:25]}  Rd4 {[%clk 0:00:45]} 44. Ra8 {[%clk 0:00:24]}  Kb4 {[%clk 0:00:44]} 45. Rf8 {[%clk 0:00:23]}  Rd6 {[%clk 0:00:44]} 46. Rf7 {[%clk 0:00:20]}  Rc6+ {[%clk 0:00:43]} 47. Kb2 {[%clk 0:00:20]}  Re6 {[%clk 0:00:44]} 48. Kc2 {[%clk 0:00:19]}  Re2+ {[%clk 0:00:44]} 49. Kd3 {[%clk 0:00:19]}  Rxg2 {[%clk 0:00:44]} 50. Rxf6 {[%clk 0:00:19]}  Kxb3 {[%clk 0:00:44]} 51. Rxb6 {[%clk 0:00:19]}  b4 {[%clk 0:00:45]} 52. Ke4 {[%clk 0:00:20]}  Rg3 {[%clk 0:00:44]} 53. Rb5 {[%clk 0:00:19]}  Kc4 {[%clk 0:00:43]} 54. Rb8 {[%clk 0:00:14]}  b3 {[%clk 0:00:43]} 55. Rc8+ {[%clk 0:00:14]}  Kb4 {[%clk 0:00:43]} 56. Rb8+ {[%clk 0:00:12]}  Ka3 {[%clk 0:00:43]} 57. Ra8+ {[%clk 0:00:12]}  Kb2 {[%clk 0:00:42]} 58. Ra5 {[%clk 0:00:12]}  Kc2 {[%clk 0:00:39]} 59. Rc5+ {[%clk 0:00:12]}  Kb1 {[%clk 0:00:39]} 60. Ke3 {[%clk 0:00:07]}  b2 {[%clk 0:00:39]} 61. Kf2 {[%clk 0:00:08]}  Rxh3 {[%clk 0:00:38]} 62. Rxg5 {[%clk 0:00:06]}  Rh2+ {[%clk 0:00:37]} 63. Kg1 {[%clk 0:00:06]}  Rc2 {[%clk 0:00:36]} 64. Rb5 {[%clk 0:00:06]}  Kc1 {[%clk 0:00:35]} 65. f4 {[%clk 0:00:07]}  b1=Q {[%clk 0:00:35]} 66. Rxb1+ {[%clk 0:00:08]}  Kxb1 {[%clk 0:00:36]} 67. f5 {[%clk 0:00:09]}  Rc5 {[%clk 0:00:35]} 68. Kg2 {[%clk 0:00:09]}  Rxf5 {[%clk 0:00:35]} 69. Kh3 {[%clk 0:00:10]}  Rf4 {[%clk 0:00:35]} 70. Kh2 {[%clk 0:00:11]}  Kc2 {[%clk 0:00:35]} 71. Kg2 {[%clk 0:00:12]}  Kd3 {[%clk 0:00:35]} 72. Kh2 {[%clk 0:00:13]}  Ke4 {[%clk 0:00:35]} 73. Kg2 {[%clk 0:00:13]}  Kf5 {[%clk 0:00:35]} 74. Kh2 {[%clk 0:00:14]}  Kg4 {[%clk 0:00:36]} 75. Kg2 {[%clk 0:00:15]}  h3+ {[%clk 0:00:36]} 76. Kh2 {[%clk 0:00:16]}  Rf2+ {[%clk 0:00:36]} 77. Kg1 {[%clk 0:00:17]}  Kg3 {[%clk 0:00:35]} 78. Kh1 {[%clk 0:00:17]}  Rf1# {[%clk 0:00:35]} 0-1


[Site "https://www.chess.com"]

[Event "Titled Tuesday Blitz December 20 Late 2022"]
[White "Pakleza, Zbigniew"]
[Black "Ibarra Jerez, Jose Carlos"]
[WhiteFideId "1119290"]
[BlackFideId "2226332"]
[WhiteElo "2410"]
[BlackElo "2638"]
[Result "0-1"]
[Round "11"]
[TimeControl "180+1"]
[Date "2022.12.20"]
[WhiteClock "0:00:06"]
[BlackClock "0:00:08"]

1. d4 {[%clk 0:03:00]}  d6 {[%clk 0:02:58]} 2. Nf3 {[%clk 0:03:00]}  g6 {[%clk 0:02:58]} 3. Bf4 {[%clk 0:03:00]}  Bg7 {[%clk 0:02:58]} 4. e3 {[%clk 0:03:01]}  Nd7 {[%clk 0:02:59]} 5. h3 {[%clk 0:03:02]}  e5 {[%clk 0:02:59]} 6. Bh2 {[%clk 0:03:03]}  Nh6 {[%clk 0:03:00]} 7. Be2 {[%clk 0:03:03]}  O-O {[%clk 0:03:00]} 8. O-O {[%clk 0:03:04]}  f5 {[%clk 0:03:01]} 9. c4 {[%clk 0:03:04]}  g5 {[%clk 0:03:00]} 10. dxe5 {[%clk 0:03:03]}  dxe5 {[%clk 0:03:00]} 11. Nc3 {[%clk 0:02:59]}  c6 {[%clk 0:02:49]} 12. Qc2 {[%clk 0:02:45]}  g4 {[%clk 0:02:46]} 13. hxg4 {[%clk 0:02:43]}  Nxg4 {[%clk 0:02:46]} 14. Rad1 {[%clk 0:02:42]}  Qf6 {[%clk 0:02:37]} 15. Bg3 {[%clk 0:02:19]}  Qh6 {[%clk 0:02:28]} 16. Nh2 {[%clk 0:02:00]}  Nxh2 {[%clk 0:01:57]} 17. Bxh2 {[%clk 0:02:01]}  Qg6 {[%clk 0:01:24]} 18. Qd2 {[%clk 0:01:31]}  Bf6 {[%clk 0:01:06]} 19. Qd6 {[%clk 0:01:24]}  Kh8 {[%clk 0:01:03]} 20. Rfe1 {[%clk 0:01:17]}  Rg8 {[%clk 0:01:03]} 21. Bf1 {[%clk 0:01:18]}  Qg7 {[%clk 0:00:58]} 22. Qc7 {[%clk 0:01:01]}  e4 {[%clk 0:00:49]} 23. Ne2 {[%clk 0:00:52]}  Ne5 {[%clk 0:00:39]} 24. Qxg7+ {[%clk 0:00:45]}  Rxg7 {[%clk 0:00:40]} 25. Rd8+ {[%clk 0:00:29]}  Rg8 {[%clk 0:00:38]} 26. Rxg8+ {[%clk 0:00:23]}  Kxg8 {[%clk 0:00:38]} 27. Bxe5 {[%clk 0:00:18]}  Bxe5 {[%clk 0:00:39]} 28. b3 {[%clk 0:00:19]}  Kf7 {[%clk 0:00:36]} 29. g3 {[%clk 0:00:18]}  a5 {[%clk 0:00:36]} 30. a4 {[%clk 0:00:17]}  Bd7 {[%clk 0:00:24]} 31. Rd1 {[%clk 0:00:15]}  Ke7 {[%clk 0:00:24]} 32. Bh3 {[%clk 0:00:10]}  Ra6 {[%clk 0:00:21]} 33. Nd4 {[%clk 0:00:09]}  Bxd4 {[%clk 0:00:18]} 34. exd4 {[%clk 0:00:07]}  Rb6 {[%clk 0:00:18]} 35. Rb1 {[%clk 0:00:03]}  Rb4 {[%clk 0:00:19]} 36. Kf1 {[%clk 0:00:01]}  b6 {[%clk 0:00:18]} 37. Ke2 {[%clk 0:00:02]}  c5 {[%clk 0:00:18]} 38. Ke3 {[%clk 0:00:02]}  Kf6 {[%clk 0:00:16]} 39. dxc5 {[%clk 0:00:01]}  bxc5 {[%clk 0:00:17]} 40. Rd1 {[%clk 0:00:01]}  Rxb3+ {[%clk 0:00:17]} 41. Ke2 {[%clk 0:00:02]}  Be6 {[%clk 0:00:16]} 42. Rd6 {[%clk 0:00:02]}  Ke5 {[%clk 0:00:15]} 43. Rc6 {[%clk 0:00:03]}  Bxc4+ {[%clk 0:00:15]} 44. Ke1 {[%clk 0:00:03]}  Kd4 {[%clk 0:00:13]} 45. Bxf5 {[%clk 0:00:03]}  Bd3 {[%clk 0:00:12]} 46. Rd6+ {[%clk 0:00:02]}  Kc3 {[%clk 0:00:12]} 47. f3 {[%clk 0:00:03]}  Rb1+ {[%clk 0:00:09]} 48. Kf2 {[%clk 0:00:03]}  e3+ {[%clk 0:00:09]} 49. Kxe3 {[%clk 0:00:03]}  Bxf5 {[%clk 0:00:10]} 50. Rd5 {[%clk 0:00:04]}  Bg6 {[%clk 0:00:08]} 51. Rxc5+ {[%clk 0:00:04]}  Kb4 {[%clk 0:00:08]} 52. Rb5+ {[%clk 0:00:03]}  Kxa4 {[%clk 0:00:09]} 53. Rxb1 {[%clk 0:00:04]}  Bxb1 {[%clk 0:00:09]} 54. g4 {[%clk 0:00:05]}  Kb4 {[%clk 0:00:09]} 55. f4 {[%clk 0:00:06]}  Kc5 {[%clk 0:00:09]} 56. f5 {[%clk 0:00:05]}  Kd6 {[%clk 0:00:10]} 57. Kf4 {[%clk 0:00:05]}  a4 {[%clk 0:00:10]} 58. g5 {[%clk 0:00:06]}  Bxf5 {[%clk 0:00:08]} 59. g6 {[%clk 0:00:06]}  hxg6 {[%clk 0:00:08]} 0-1


[Site "https://www.chess.com"]

[Event "Titled Tuesday Blitz December 20 Late 2022"]
[White "Perske, Thore"]
[Black "Movahed, Sina"]
[WhiteFideId "12902195"]
[BlackFideId "42520835"]
[WhiteElo "2336"]
[BlackElo "2225"]
[Result "0-1"]
[Round "11"]
[TimeControl "180+1"]
[Date "2022.12.20"]
[WhiteClock "0:00:02"]
[BlackClock "0:00:14"]

1. e4 {[%clk 0:02:59]}  c5 {[%clk 0:02:59]} 2. Nf3 {[%clk 0:02:59]}  d6 {[%clk 0:03:00]} 3. g3 {[%clk 0:02:59]}  Nf6 {[%clk 0:03:00]} 4. d3 {[%clk 0:03:00]}  g6 {[%clk 0:03:00]} 5. Bg2 {[%clk 0:03:00]}  Bg7 {[%clk 0:03:01]} 6. O-O {[%clk 0:03:01]}  O-O {[%clk 0:03:02]} 7. Nc3 {[%clk 0:03:02]}  Nc6 {[%clk 0:03:02]} 8. h3 {[%clk 0:03:02]}  Rb8 {[%clk 0:03:02]} 9. a4 {[%clk 0:03:03]}  a6 {[%clk 0:03:02]} 10. Be3 {[%clk 0:03:04]}  b5 {[%clk 0:03:02]} 11. axb5 {[%clk 0:03:04]}  axb5 {[%clk 0:03:03]} 12. Qd2 {[%clk 0:03:05]}  b4 {[%clk 0:03:02]} 13. Nd1 {[%clk 0:03:06]}  Bd7 {[%clk 0:03:02]} 14. Bh6 {[%clk 0:03:06]}  Qc8 {[%clk 0:03:02]} 15. Kh2 {[%clk 0:03:05]}  Qc7 {[%clk 0:02:52]} 16. Bxg7 {[%clk 0:03:03]}  Kxg7 {[%clk 0:02:53]} 17. Ne3 {[%clk 0:03:03]}  Nd4 {[%clk 0:02:49]} 18. Nh4 {[%clk 0:03:03]}  Bc6 {[%clk 0:02:44]} 19. f4 {[%clk 0:03:03]}  e6 {[%clk 0:02:41]} 20. g4 {[%clk 0:02:58]}  h6 {[%clk 0:02:29]} 21. Rf2 {[%clk 0:02:56]}  Ra8 {[%clk 0:02:29]} 22. Raf1 {[%clk 0:02:53]}  Ra2 {[%clk 0:02:26]} 23. Qc1 {[%clk 0:02:44]}  Bb5 {[%clk 0:02:03]} 24. Kh1 {[%clk 0:02:07]}  c4 {[%clk 0:01:52]} 25. e5 {[%clk 0:01:45]}  Nd5 {[%clk 0:01:47]} 26. dxc4 {[%clk 0:01:00]}  Bxc4 {[%clk 0:01:39]} 27. exd6 {[%clk 0:00:59]}  Qc5 {[%clk 0:01:34]} 28. Nxc4 {[%clk 0:00:52]}  Qxc4 {[%clk 0:01:35]} 29. f5 {[%clk 0:00:52]}  exf5 {[%clk 0:01:34]} 30. gxf5 {[%clk 0:00:52]}  g5 {[%clk 0:01:34]} 31. f6+ {[%clk 0:00:51]}  Kh8 {[%clk 0:01:23]} 32. Nf5 {[%clk 0:00:37]}  Nxf5 {[%clk 0:00:54]} 33. Rxf5 {[%clk 0:00:38]}  Nf4 {[%clk 0:00:54]} 34. Kh2 {[%clk 0:00:08]}  Ng6 {[%clk 0:00:32]} 35. Bd5 {[%clk 0:00:06]}  Qa6 {[%clk 0:00:25]} 36. Bxa2 {[%clk 0:00:06]}  Qxa2 {[%clk 0:00:26]} 37. Qd2 {[%clk 0:00:05]}  Rd8 {[%clk 0:00:24]} 38. d7 {[%clk 0:00:06]}  Qe6 {[%clk 0:00:23]} 39. Rd5 {[%clk 0:00:06]}  Ne5 {[%clk 0:00:21]} 40. Kg2 {[%clk 0:00:04]}  Nc4 {[%clk 0:00:21]} 41. Re1 {[%clk 0:00:01]}  Qc6 {[%clk 0:00:18]} 42. Re8+ {[%clk 0:00:01]}  Rxe8 {[%clk 0:00:18]} 43. dxe8=Q+ {[%clk 0:00:02]}  Qxe8 {[%clk 0:00:19]} 44. Qd4 {[%clk 0:00:02]}  Qe2+ {[%clk 0:00:18]} 45. Kg3 {[%clk 0:00:02]}  Qe1+ {[%clk 0:00:16]} 46. Kg2 {[%clk 0:00:03]}  Ne3+ {[%clk 0:00:15]} 47. Kh2 {[%clk 0:00:02]}  Qf2+ {[%clk 0:00:14]} 0-1


[Site "https://www.chess.com"]

[Event "Titled Tuesday Blitz December 20 Late 2022"]
[White "Polster, Christian"]
[Black "Migot, Tangi"]
[WhiteFideId "12965081"]
[BlackFideId "662445"]
[WhiteElo "2195"]
[BlackElo "2560"]
[Result "0-1"]
[Round "11"]
[TimeControl "180+1"]
[Date "2022.12.21"]
[WhiteClock "0:00:05"]
[BlackClock "0:00:22"]

1. e4 {[%clk 0:02:56]}  c5 {[%clk 0:02:54]} 2. Nc3 {[%clk 0:02:56]}  a6 {[%clk 0:02:54]} 3. g3 {[%clk 0:02:56]}  b5 {[%clk 0:02:53]} 4. Bg2 {[%clk 0:02:56]}  Bb7 {[%clk 0:02:53]} 5. Nge2 {[%clk 0:02:56]}  Nc6 {[%clk 0:02:54]} 6. O-O {[%clk 0:02:55]}  Qb6 {[%clk 0:02:50]} 7. Nd5 {[%clk 0:02:53]}  Qd8 {[%clk 0:02:50]} 8. d4 {[%clk 0:02:53]}  e6 {[%clk 0:02:51]} 9. Ndc3 {[%clk 0:02:51]}  cxd4 {[%clk 0:02:51]} 10. Nxd4 {[%clk 0:02:51]}  Rc8 {[%clk 0:02:42]} 11. Re1 {[%clk 0:02:40]}  Bc5 {[%clk 0:02:39]} 12. Nb3 {[%clk 0:02:31]}  Be7 {[%clk 0:02:34]} 13. Be3 {[%clk 0:02:06]}  Nf6 {[%clk 0:02:32]} 14. e5 {[%clk 0:02:05]}  Nd5 {[%clk 0:02:15]} 15. Nxd5 {[%clk 0:01:59]}  exd5 {[%clk 0:02:16]} 16. Bxd5 {[%clk 0:01:52]}  O-O {[%clk 0:02:17]} 17. f4 {[%clk 0:01:38]}  d6 {[%clk 0:02:14]} 18. e6 {[%clk 0:01:32]}  Bf6 {[%clk 0:02:04]} 19. exf7+ {[%clk 0:01:27]}  Kh8 {[%clk 0:02:05]} 20. c3 {[%clk 0:01:25]}  Ba8 {[%clk 0:01:56]} 21. Qd2 {[%clk 0:01:15]}  Ne7 {[%clk 0:01:47]} 22. Bxa8 {[%clk 0:01:13]}  Rxa8 {[%clk 0:01:48]} 23. Rad1 {[%clk 0:01:11]}  Nf5 {[%clk 0:01:47]} 24. Bf2 {[%clk 0:01:05]}  h5 {[%clk 0:01:17]} 25. Nd4 {[%clk 0:00:53]}  Bxd4 {[%clk 0:01:12]} 26. Bxd4 {[%clk 0:00:54]}  Rxf7 {[%clk 0:01:12]} 27. Bf2 {[%clk 0:00:46]}  Qd7 {[%clk 0:01:08]} 28. Qd5 {[%clk 0:00:41]}  Raf8 {[%clk 0:00:52]} 29. Re6 {[%clk 0:00:30]}  Rf6 {[%clk 0:00:43]} 30. Rxf6 {[%clk 0:00:25]}  Rxf6 {[%clk 0:00:43]} 31. Qa8+ {[%clk 0:00:24]}  Kh7 {[%clk 0:00:42]} 32. Qxa6 {[%clk 0:00:21]}  h4 {[%clk 0:00:40]} 33. Qb6 {[%clk 0:00:09]}  hxg3 {[%clk 0:00:33]} 34. hxg3 {[%clk 0:00:10]}  Rh6 {[%clk 0:00:29]} 35. Qa7 {[%clk 0:00:09]}  Qe6 {[%clk 0:00:27]} 36. Re1 {[%clk 0:00:06]}  Qd5 {[%clk 0:00:27]} 37. Be3 {[%clk 0:00:04]}  Rh1+ {[%clk 0:00:21]} 38. Kf2 {[%clk 0:00:05]}  Rh2+ {[%clk 0:00:22]} 39. Kg1 {[%clk 0:00:05]}  Qg2# {[%clk 0:00:22]} 0-1


[Site "https://www.chess.com"]

[Event "Titled Tuesday Blitz December 20 Late 2022"]
[White "Radovanovic, Dusan"]
[Black "Sielecki, Christof"]
[WhiteFideId "926868"]
[BlackFideId "4620437"]
[WhiteElo "2337"]
[BlackElo "2443"]
[Result "0-1"]
[Round "11"]
[TimeControl "180+1"]
[Date "2022.12.21"]
[WhiteClock "0:00:52"]
[BlackClock "0:01:38"]

1. e4 {[%clk 0:03:00]}  c5 {[%clk 0:02:57]} 2. Nf3 {[%clk 0:03:00]}  a6 {[%clk 0:02:54]} 3. c4 {[%clk 0:02:59]}  Nc6 {[%clk 0:02:54]} 4. d4 {[%clk 0:02:59]}  cxd4 {[%clk 0:02:55]} 5. Nxd4 {[%clk 0:02:59]}  e5 {[%clk 0:02:55]} 6. Nc2 {[%clk 0:02:58]}  Nf6 {[%clk 0:02:55]} 7. Nc3 {[%clk 0:02:58]}  Bc5 {[%clk 0:02:49]} 8. Be2 {[%clk 0:02:54]}  d6 {[%clk 0:02:46]} 9. O-O {[%clk 0:02:52]}  O-O {[%clk 0:02:47]} 10. a3 {[%clk 0:02:47]}  Nd4 {[%clk 0:02:46]} 11. Bg5 {[%clk 0:02:11]}  Be6 {[%clk 0:02:40]} 12. Ne3 {[%clk 0:02:10]}  h6 {[%clk 0:02:36]} 13. Bh4 {[%clk 0:02:09]}  g5 {[%clk 0:02:30]} 14. Bg3 {[%clk 0:02:09]}  Rc8 {[%clk 0:02:27]} 15. Ncd5 {[%clk 0:01:59]}  Nxe4 {[%clk 0:02:23]} 16. b4 {[%clk 0:01:43]}  Ba7 {[%clk 0:02:23]} 17. Kh1 {[%clk 0:01:19]}  f5 {[%clk 0:02:21]} 18. f3 {[%clk 0:01:18]}  Nxg3+ {[%clk 0:02:16]} 19. hxg3 {[%clk 0:01:19]}  f4 {[%clk 0:02:12]} 20. Ng4 {[%clk 0:01:12]}  Bxd5 {[%clk 0:02:07]} 21. cxd5 {[%clk 0:01:12]}  Qe8 {[%clk 0:02:00]} 22. gxf4 {[%clk 0:00:57]}  Qh5+ {[%clk 0:01:54]} 23. Nh2 {[%clk 0:00:57]}  gxf4 {[%clk 0:01:47]} 24. Bd3 {[%clk 0:00:55]}  Rf5 {[%clk 0:01:43]} 25. Qe1 {[%clk 0:00:52]}  Qxh2+ {[%clk 0:01:38]} 0-1


[Site "https://www.chess.com"]

[Event "Titled Tuesday Blitz December 20 Late 2022"]
[White "Rangel, Daniel"]
[Black "benny_aizenberg"]
[WhiteFideId "2124475"]
[WhiteElo "2225"]
[BlackElo "2416"]
[Result "0-1"]
[Round "11"]
[TimeControl "180+1"]
[Date "2022.12.21"]
[WhiteClock "0:01:35"]
[BlackClock "0:02:13"]

1. d4 {[%clk 0:03:00]}  f5 {[%clk 0:02:59]} 2. c4 {[%clk 0:02:59]}  Nf6 {[%clk 0:02:59]} 3. Nc3 {[%clk 0:03:00]}  d6 {[%clk 0:02:58]} 4. h3 {[%clk 0:02:55]}  e5 {[%clk 0:02:44]} 5. dxe5 {[%clk 0:02:43]}  dxe5 {[%clk 0:02:44]} 6. Qxd8+ {[%clk 0:02:43]}  Kxd8 {[%clk 0:02:44]} 7. Bg5 {[%clk 0:02:44]}  Be6 {[%clk 0:02:43]} 8. O-O-O+ {[%clk 0:02:42]}  Kc8 {[%clk 0:02:37]} 9. Nd5 {[%clk 0:02:37]}  Nbd7 {[%clk 0:02:35]} 10. Bxf6 {[%clk 0:02:18]}  Nxf6 {[%clk 0:02:27]} 11. Nxf6 {[%clk 0:02:16]}  gxf6 {[%clk 0:02:27]} 12. e3 {[%clk 0:02:17]}  Bc5 {[%clk 0:02:25]} 13. g3 {[%clk 0:02:06]}  f4 {[%clk 0:02:20]} 14. exf4 {[%clk 0:02:02]}  Bxf2 {[%clk 0:02:18]} 15. fxe5 {[%clk 0:01:57]}  fxe5 {[%clk 0:02:18]} 16. g4 {[%clk 0:01:54]}  e4 {[%clk 0:02:17]} 17. Ne2 {[%clk 0:01:50]}  Bxc4 {[%clk 0:02:17]} 18. Nf4 {[%clk 0:01:41]}  Bxa2 {[%clk 0:02:13]} 19. Bg2 {[%clk 0:01:35]}  Be3+ {[%clk 0:02:13]} 0-1


[Site "https://www.chess.com"]